[Event "Titled Tuesday Blitz April 25 Early 2023"]
[White "GregLeBarbare"]
[Black "Gonzalez, Francisco Silva"]
[BlackFideId "1512285"]
[WhiteElo "2163"]
[BlackElo "2074"]
[Result "0-1"]
[Round "11"]
[TimeControl "180+2"]
[Date "2023.04.25"]
[WhiteClock "0:00:22"]
[BlackClock "0:01:26"]

1. d4 {[%clk 0:02:54]}  Nf6 {[%clk 0:02:59]} 2. Bf4 {[%clk 0:02:50]}  d5 {[%clk 0:02:59]} 3. Nf3 {[%clk 0:02:49]}  c5 {[%clk 0:02:59]} 4. e3 {[%clk 0:02:48]}  Nc6 {[%clk 0:02:59]} 5. Nbd2 {[%clk 0:02:49]}  cxd4 {[%clk 0:02:58]} 6. exd4 {[%clk 0:02:48]}  Bf5 {[%clk 0:02:57]} 7. c3 {[%clk 0:02:46]}  a6 {[%clk 0:02:57]} 8. Ne5 {[%clk 0:02:23]}  Qc8 {[%clk 0:02:54]} 9. h3 {[%clk 0:02:14]}  e6 {[%clk 0:02:51]} 10. g4 {[%clk 0:02:09]}  Bg6 {[%clk 0:02:48]} 11. Nxg6 {[%clk 0:02:08]}  hxg6 {[%clk 0:02:47]} 12. Bg2 {[%clk 0:02:07]}  Qd7 {[%clk 0:02:45]} 13. O-O {[%clk 0:02:07]}  Bd6 {[%clk 0:02:45]} 14. Bxd6 {[%clk 0:02:00]}  Qxd6 {[%clk 0:02:44]} 15. Re1 {[%clk 0:01:57]}  Kf8 {[%clk 0:02:41]} 16. Nb3 {[%clk 0:01:48]}  b6 {[%clk 0:02:39]} 17. Nc1 {[%clk 0:01:48]}  a5 {[%clk 0:02:37]} 18. a4 {[%clk 0:01:46]}  Rb8 {[%clk 0:02:33]} 19. Nd3 {[%clk 0:01:46]}  Ne4 {[%clk 0:02:31]} 20. f4 {[%clk 0:01:17]}  f5 {[%clk 0:02:28]} 21. Ne5 {[%clk 0:00:53]}  Nxe5 {[%clk 0:02:25]} 22. fxe5 {[%clk 0:00:53]}  Qe7 {[%clk 0:02:23]} 23. Bxe4 {[%clk 0:00:53]}  dxe4 {[%clk 0:02:21]} 24. Kg2 {[%clk 0:00:52]}  Qh4 {[%clk 0:02:20]} 25. Rh1 {[%clk 0:00:51]}  f4 {[%clk 0:02:15]} 26. Qe1 {[%clk 0:00:50]}  f3+ {[%clk 0:02:15]} 27. Kg1 {[%clk 0:00:50]}  e3 {[%clk 0:02:00]} 28. Qxh4 {[%clk 0:00:43]}  Rxh4 {[%clk 0:01:58]} 29. Kh2 {[%clk 0:00:39]}  Ke7 {[%clk 0:01:57]} 30. Kg3 {[%clk 0:00:39]}  Rbh8 {[%clk 0:01:31]} 31. Kxf3 {[%clk 0:00:38]}  Rxh3+ {[%clk 0:01:31]} 32. Rxh3 {[%clk 0:00:38]}  Rxh3+ {[%clk 0:01:31]} 33. Ke2 {[%clk 0:00:36]}  Rh2+ {[%clk 0:01:31]} 34. Kxe3 {[%clk 0:00:35]}  Rxb2 {[%clk 0:01:31]} 35. Kd3 {[%clk 0:00:28]}  g5 {[%clk 0:01:30]} 36. Kc4 {[%clk 0:00:23]}  Kf7 {[%clk 0:01:26]} 37. Rf1+ {[%clk 0:00:21]}  Ke7 {[%clk 0:01:27]} 38. Rf8 {[%clk 0:00:22]}  Kxf8 {[%clk 0:01:26]} 0-1


[Site "https://www.chess.com"]

[Event "Titled Tuesday Blitz April 25 Early 2023"]
[White "White, John S."]
[Black "Jiganchine, Roman"]
[WhiteFideId "2502348"]
[BlackFideId "2603667"]
[WhiteElo "2029"]
[BlackElo "2251"]
[Result "0-1"]
[Round "11"]
[TimeControl "180+2"]
[Date "2023.04.25"]
[WhiteClock "0:00:55"]
[BlackClock "0:00:16"]

1. e4 {[%clk 0:03:00]}  c6 {[%clk 0:02:55]} 2. d4 {[%clk 0:03:00]}  d5 {[%clk 0:02:55]} 3. Nc3 {[%clk 0:03:01]}  dxe4 {[%clk 0:02:54]} 4. Nxe4 {[%clk 0:03:02]}  Nf6 {[%clk 0:02:55]} 5. Nxf6+ {[%clk 0:03:01]}  exf6 {[%clk 0:02:56]} 6. Bc4 {[%clk 0:02:58]}  Bd6 {[%clk 0:02:55]} 7. h3 {[%clk 0:02:55]}  O-O {[%clk 0:02:54]} 8. Nf3 {[%clk 0:02:54]}  Re8+ {[%clk 0:02:53]} 9. Be3 {[%clk 0:02:53]}  Bf4 {[%clk 0:02:53]} 10. Qd2 {[%clk 0:02:53]}  Nd7 {[%clk 0:02:48]} 11. O-O {[%clk 0:02:53]}  Bxe3 {[%clk 0:02:41]} 12. fxe3 {[%clk 0:02:54]}  Nb6 {[%clk 0:02:40]} 13. Bb3 {[%clk 0:02:47]}  a5 {[%clk 0:02:24]} 14. a3 {[%clk 0:02:47]}  a4 {[%clk 0:02:20]} 15. Ba2 {[%clk 0:02:47]}  Be6 {[%clk 0:02:17]} 16. Bxe6 {[%clk 0:02:35]}  Rxe6 {[%clk 0:02:10]} 17. b3 {[%clk 0:02:28]}  axb3 {[%clk 0:02:06]} 18. cxb3 {[%clk 0:02:28]}  Qd5 {[%clk 0:02:06]} 19. Qc3 {[%clk 0:02:21]}  Rae8 {[%clk 0:01:54]} 20. Rfe1 {[%clk 0:02:21]}  Nd7 {[%clk 0:01:31]} 21. a4 {[%clk 0:02:18]}  c5 {[%clk 0:01:24]} 22. dxc5 {[%clk 0:02:09]}  Nxc5 {[%clk 0:01:16]} 23. b4 {[%clk 0:02:08]}  Ne4 {[%clk 0:01:12]} 24. Qd4 {[%clk 0:02:04]}  Qh5 {[%clk 0:01:07]} 25. Rac1 {[%clk 0:01:43]}  h6 {[%clk 0:01:07]} 26. Rc7 {[%clk 0:01:42]}  Rd6 {[%clk 0:00:47]} 27. Qc4 {[%clk 0:01:37]}  Nd2 {[%clk 0:00:35]} 28. Nxd2 {[%clk 0:01:30]}  Rxd2 {[%clk 0:00:36]} 29. Rxb7 {[%clk 0:01:25]}  Qg6 {[%clk 0:00:33]} 30. Qg4 {[%clk 0:01:19]}  Qc2 {[%clk 0:00:18]} 31. a5 {[%clk 0:01:13]}  h5 {[%clk 0:00:17]} 32. Qxh5 {[%clk 0:01:08]}  Rxg2+ {[%clk 0:00:17]} 33. Kh1 {[%clk 0:00:58]}  Rh2+ {[%clk 0:00:17]} 34. Kg1 {[%clk 0:00:55]}  Qg2# {[%clk 0:00:16]} 0-1


[Site "https://www.chess.com"]

[Event "Titled Tuesday Blitz April 25 Early 2023"]
[White "Necula, Iulian"]
[Black "Lach, Aleksandra"]
[WhiteFideId "1232380"]
[BlackFideId "1134299"]
[WhiteElo "1790"]
[BlackElo "2111"]
[Result "0-1"]
[Round "11"]
[TimeControl "180+2"]
[Date "2023.04.25"]
[WhiteClock "0:00:33"]
[BlackClock "0:00:12"]

1. d4 {[%clk 0:03:00]}  c5 {[%clk 0:02:57]} 2. d5 {[%clk 0:03:00]}  e5 {[%clk 0:02:57]} 3. Nc3 {[%clk 0:02:53]}  d6 {[%clk 0:02:57]} 4. e4 {[%clk 0:02:53]}  f5 {[%clk 0:02:52]} 5. Nf3 {[%clk 0:02:49]}  Nf6 {[%clk 0:02:51]} 6. Bb5+ {[%clk 0:02:46]}  Nbd7 {[%clk 0:02:35]} 7. exf5 {[%clk 0:02:44]}  a6 {[%clk 0:02:35]} 8. Bd3 {[%clk 0:02:24]}  Nb6 {[%clk 0:02:27]} 9. O-O {[%clk 0:02:19]}  c4 {[%clk 0:02:26]} 10. Be4 {[%clk 0:02:09]}  Nxe4 {[%clk 0:01:57]} 11. Nxe4 {[%clk 0:02:10]}  Bxf5 {[%clk 0:01:57]} 12. Bg5 {[%clk 0:02:08]}  Be7 {[%clk 0:01:55]} 13. Bxe7 {[%clk 0:02:06]}  Qxe7 {[%clk 0:01:56]} 14. Ng3 {[%clk 0:02:06]}  O-O {[%clk 0:01:46]} 15. Nxf5 {[%clk 0:02:03]}  Rxf5 {[%clk 0:01:47]} 16. c3 {[%clk 0:02:02]}  Qf7 {[%clk 0:01:45]} 17. Nd2 {[%clk 0:01:41]}  Qxd5 {[%clk 0:01:39]} 18. Qg4 {[%clk 0:01:28]}  Rf4 {[%clk 0:01:31]} 19. Qe2 {[%clk 0:01:28]}  Raf8 {[%clk 0:01:30]} 20. Rad1 {[%clk 0:01:27]}  Qe6 {[%clk 0:01:25]} 21. Ne4 {[%clk 0:01:21]}  d5 {[%clk 0:01:20]} 22. Nc5 {[%clk 0:01:20]}  Qe7 {[%clk 0:01:19]} 23. b4 {[%clk 0:01:14]}  cxb3 {[%clk 0:01:18]} 24. Nxb3 {[%clk 0:01:14]}  Re4 {[%clk 0:00:59]} 25. Qd3 {[%clk 0:01:00]}  Rd8 {[%clk 0:00:48]} 26. Rfe1 {[%clk 0:00:58]}  Rxe1+ {[%clk 0:00:36]} 27. Rxe1 {[%clk 0:00:59]}  Nc4 {[%clk 0:00:34]} 28. h3 {[%clk 0:00:53]}  b5 {[%clk 0:00:33]} 29. f4 {[%clk 0:00:44]}  Qa7+ {[%clk 0:00:26]} 30. Kh2 {[%clk 0:00:43]}  exf4 {[%clk 0:00:24]} 31. Nd4 {[%clk 0:00:39]}  Qf7 {[%clk 0:00:18]} 32. Ne6 {[%clk 0:00:37]}  Rd7 {[%clk 0:00:18]} 33. Qf3 {[%clk 0:00:33]}  h6 {[%clk 0:00:15]} 34. Qxf4 {[%clk 0:00:32]}  Qxf4+ {[%clk 0:00:15]} 35. Nxf4 {[%clk 0:00:33]}  d4 {[%clk 0:00:13]} 36. Re8+ {[%clk 0:00:33]}  Kf7 {[%clk 0:00:12]} 37. cxd4 {[%clk 0:00:33]}  Kxe8 {[%clk 0:00:12]} 0-1


[Site "https://www.chess.com"]

[Event "Titled Tuesday Blitz April 25 Early 2023"]
[White "Winkels, Marcel"]
[Black "Chakravarthi Reddy, M"]
[WhiteFideId "1003887"]
[BlackFideId "25009532"]
[WhiteElo "1900"]
[BlackElo "2201"]
[Result "0-1"]
[Round "11"]
[TimeControl "180+2"]
[Date "2023.04.25"]
[WhiteClock "0:00:56"]
[BlackClock "0:02:16"]

1. d4 {[%clk 0:03:00]}  d5 {[%clk 0:02:59]} 2. Nc3 {[%clk 0:03:01]}  c6 {[%clk 0:03:00]} 3. Bf4 {[%clk 0:03:01]}  Nf6 {[%clk 0:03:00]} 4. e3 {[%clk 0:03:00]}  e6 {[%clk 0:03:01]} 5. Nf3 {[%clk 0:03:01]}  Bd6 {[%clk 0:03:01]} 6. Ne5 {[%clk 0:03:00]}  O-O {[%clk 0:03:01]} 7. Bd3 {[%clk 0:02:58]}  Bxe5 {[%clk 0:03:01]} 8. Bxe5 {[%clk 0:02:56]}  Nbd7 {[%clk 0:03:02]} 9. Bg3 {[%clk 0:02:55]}  Re8 {[%clk 0:03:01]} 10. h4 {[%clk 0:02:53]}  e5 {[%clk 0:03:00]} 11. dxe5 {[%clk 0:02:24]}  Nxe5 {[%clk 0:02:56]} 12. h5 {[%clk 0:02:23]}  Bg4 {[%clk 0:02:50]} 13. f3 {[%clk 0:02:15]}  Nxf3+ {[%clk 0:02:49]} 14. gxf3 {[%clk 0:02:11]}  Rxe3+ {[%clk 0:02:50]} 15. Kd2 {[%clk 0:02:01]}  Rxf3 {[%clk 0:02:48]} 16. Qe1 {[%clk 0:01:48]}  Nxh5 {[%clk 0:02:44]} 17. Rxh5 {[%clk 0:01:30]}  Bxh5 {[%clk 0:02:44]} 18. Qe5 {[%clk 0:01:17]}  f5 {[%clk 0:02:19]} 19. Be2 {[%clk 0:01:12]}  Qg5+ {[%clk 0:02:18]} 20. Bf4 {[%clk 0:01:00]}  Rxf4 {[%clk 0:02:16]} 21. Bxh5 {[%clk 0:00:56]}  Re4+ {[%clk 0:02:16]} 0-1


[Site "https://www.chess.com"]

[Event "Titled Tuesday Blitz April 25 Early 2023"]
[White "Lohani, Sujana"]
[Black "Floresvillar Gonzalez, Luis Migu"]
[WhiteFideId "12311987"]
[BlackFideId "5100542"]
[WhiteElo "1718"]
[BlackElo "2040"]
[Result "0-1"]
[Round "11"]
[TimeControl "180+2"]
[Date "2023.04.25"]
[WhiteClock "0:00:01"]
[BlackClock "0:00:47"]

1. d4 {[%clk 0:01:46]}  d5 {[%clk 0:02:58]} 2. Nf3 {[%clk 0:01:47]}  c6 {[%clk 0:02:57]} 3. c4 {[%clk 0:01:47]}  Bf5 {[%clk 0:02:56]} 4. Nc3 {[%clk 0:01:40]}  e6 {[%clk 0:02:56]} 5. Qb3 {[%clk 0:01:33]}  Qb6 {[%clk 0:02:55]} 6. c5 {[%clk 0:01:33]}  Qxb3 {[%clk 0:02:55]} 7. axb3 {[%clk 0:01:34]}  a6 {[%clk 0:02:53]} 8. h3 {[%clk 0:01:19]}  Nd7 {[%clk 0:02:51]} 9. b4 {[%clk 0:01:10]}  f6 {[%clk 0:02:48]} 10. b5 {[%clk 0:01:09]}  cxb5 {[%clk 0:02:46]} 11. Nxb5 {[%clk 0:01:05]}  Rc8 {[%clk 0:02:45]} 12. Na7 {[%clk 0:00:54]}  Rc7 {[%clk 0:02:28]} 13. Bf4 {[%clk 0:00:53]}  e5 {[%clk 0:02:28]} 14. dxe5 {[%clk 0:00:42]}  fxe5 {[%clk 0:02:26]} 15. Nxe5 {[%clk 0:00:41]}  Nxe5 {[%clk 0:02:25]} 16. Bxe5 {[%clk 0:00:41]}  Rxc5 {[%clk 0:02:24]} 17. e3 {[%clk 0:00:39]}  Nf6 {[%clk 0:02:10]} 18. Be2 {[%clk 0:00:31]}  Rc2 {[%clk 0:02:08]} 19. Bd1 {[%clk 0:00:25]}  Bb4+ {[%clk 0:01:58]} 20. Kf1 {[%clk 0:00:17]}  Rc5 {[%clk 0:01:53]} 21. Kg1 {[%clk 0:00:16]}  Ke7 {[%clk 0:01:48]} 22. Bd4 {[%clk 0:00:16]}  Rc7 {[%clk 0:01:45]} 23. Kh2 {[%clk 0:00:15]}  Ra8 {[%clk 0:01:43]} 24. Bb3 {[%clk 0:00:13]}  Rd8 {[%clk 0:01:38]} 25. Bb6 {[%clk 0:00:12]}  Bd6+ {[%clk 0:01:32]} 26. Kg1 {[%clk 0:00:09]}  Re8 {[%clk 0:01:20]} 27. Bxc7 {[%clk 0:00:09]}  Bxc7 {[%clk 0:01:20]} 28. Ba4 {[%clk 0:00:09]}  Rd8 {[%clk 0:01:18]} 29. g3 {[%clk 0:00:08]}  Bb6 {[%clk 0:01:18]} 30. Nb5 {[%clk 0:00:07]}  axb5 {[%clk 0:01:18]} 31. Bxb5 {[%clk 0:00:08]}  Rc8 {[%clk 0:01:16]} 32. Kg2 {[%clk 0:00:08]}  Rc2 {[%clk 0:01:16]} 33. Rhc1 {[%clk 0:00:08]}  Rxb2 {[%clk 0:01:14]} 34. Ba4 {[%clk 0:00:07]}  d4 {[%clk 0:01:12]} 35. exd4 {[%clk 0:00:06]}  Bxd4 {[%clk 0:01:12]} 36. Rf1 {[%clk 0:00:06]}  Nd5 {[%clk 0:01:09]} 37. Rae1+ {[%clk 0:00:07]}  Kf7 {[%clk 0:01:04]} 38. Rd1 {[%clk 0:00:07]}  Ne3+ {[%clk 0:01:03]} 39. Kf3 {[%clk 0:00:07]}  Nxd1 {[%clk 0:01:03]} 40. Rxd1 {[%clk 0:00:07]}  Bxf2 {[%clk 0:01:03]} 41. Rf1 {[%clk 0:00:03]}  Bc5 {[%clk 0:00:59]} 42. Kf4 {[%clk 0:00:03]}  Bxh3 {[%clk 0:00:56]} 43. Rf3 {[%clk 0:00:02]}  b6 {[%clk 0:00:54]} 44. Kg5+ {[%clk 0:00:02]}  Ke7 {[%clk 0:00:49]} 45. Kh4 {[%clk 0:00:01]}  Be6 {[%clk 0:00:47]} 0-1


[Site "https://www.chess.com"]

[Event "Titled Tuesday Blitz April 25 Early 2023"]
[White "Larina, Maria"]
[Black "Calhoun, Luke"]
[WhiteFideId "24113182"]
[BlackFideId "2064421"]
[WhiteElo "1848"]
[BlackElo "2253"]
[Result "1-0"]
[Round "11"]
[TimeControl "180+2"]
[Date "2023.04.25"]
[WhiteClock "0:01:58"]
[BlackClock "0:00:15"]

1. e4 {[%clk 0:03:00]}  c5 {[%clk 0:00:35]} 2. Nc3 {[%clk 0:02:57]}  Nc6 {[%clk 0:00:34]} 3. g3 {[%clk 0:02:57]}  g6 {[%clk 0:00:34]} 4. Bg2 {[%clk 0:02:57]}  Bg7 {[%clk 0:00:34]} 5. d3 {[%clk 0:02:57]}  e6 {[%clk 0:00:33]} 6. Be3 {[%clk 0:02:57]}  b6 {[%clk 0:00:32]} 7. Qd2 {[%clk 0:02:57]}  Nge7 {[%clk 0:00:32]} 8. Bh6 {[%clk 0:02:56]}  O-O {[%clk 0:00:32]} 9. h4 {[%clk 0:02:56]}  Nd4 {[%clk 0:00:26]} 10. Bxg7 {[%clk 0:02:55]}  Kxg7 {[%clk 0:00:26]} 11. h5 {[%clk 0:02:55]}  Rh8 {[%clk 0:00:23]} 12. e5 {[%clk 0:02:44]}  Nec6 {[%clk 0:00:19]} 13. O-O-O {[%clk 0:02:23]}  Bb7 {[%clk 0:00:16]} 14. h6+ {[%clk 0:02:13]}  Kf8 {[%clk 0:00:15]} 15. f4 {[%clk 0:02:09]}  Qc7 {[%clk 0:00:15]} 16. Ne4 {[%clk 0:01:58]} 1-0